bitfinex-derivatives/quotes_SOLF0:USTF0_20240823
["timestamp","ask_amount","ask_price","bid_price","bid_amount"]
[1724406368834,0.05074394,144.49,144.48,12.2625]
[1724406369035,0.05074394,144.49,144.48,13.64632417]
[1724406370335,0.05074394,144.49,144.48,6.23632417]
[1724406370742,0.05074394,144.49,144.48,4.8525]
[1724406370943,0.05074394,144.49,144.48,6.23632548]
[1724406371659,0.05074394,144.49,144.48,4.8525]
[1724406371850,0.05074394,144.49,144.48,6.23633286]
[1724406372141,0.05074394,144.49,144.48,1.38383286]
[1724406374143,0.05074394,144.49,144.47,0.04481372]
[1724406374343,3.51094394,144.49,144.47,0.04481372]
[1724406374843,3.4604,144.48,144.47,0.04481372]
[1724406376648,3.4604,144.48,144.47,1.42884167]
[1724406377745,10.8704,144.48,144.47,0.04481372]
[1724406379447,3.4611,144.46,144.42,4.833]
[1724406379651,10.8711,144.46,144.43,1.38423]
[1724406379950,7.41,144.46,144.44,1.38423]
[1724406380153,10.8709,144.46,144.45,1.38423]
[1724406380349,10.8709,144.46,144.43,1.38423]
[1724406380655,10.92142104,144.46,144.44,1.38423]
[1724406381559,10.92142104,144.46,144.45,1.38423]
[1724406381767,10.92142104,144.46,144.43,0.04508546]
[1724406381953,10.92142104,144.46,144.45,1.38423867]
[1724406382153,3.51142104,144.46,144.45,1.38423867]
[1724406383052,3.51142104,144.46,144.43,3.50668546]
[1724406383248,0.05052104,144.46,144.44,4.84553116]
[1724406383458,0.05052104,144.46,144.45,1.38423116]
[1724406385155,0.05052104,144.46,144.45,1.38411192]
[1724406386153,0.05052104,144.46,144.43,3.50658546]
[1724406386358,0.05052104,144.46,144.44,1.38431376]
[1724406386662,0.05052104,144.46,144.45,1.38431376]
[1724406388383,0.05052104,144.46,144.44,3.4613]
[1724406388556,3.51142104,144.46,144.45,1.38417096]
[1724406390562,0.05052104,144.46,144.45,1.38417096]
[1724406390769,0.05052104,144.46,144.43,3.50658546]
[1724406390954,0.05052104,144.46,144.44,1.38417896]
[1724406391160,0.05052104,144.46,144.45,1.38417896]
[1724406391769,0.05052104,144.46,144.43,3.50658546]
[1724406392061,0.05052104,144.46,144.44,1.38417995]
[1724406392366,0.05052104,144.46,144.45,1.38417895]
[1724406393155,3.45122104,144.47,144.45,1.38417895]
[1724406393356,3.45122104,144.47,144.46,1.38417895]
[1724406394992,3.45122104,144.47,144.43,3.50658546]
[1724406395163,3.45122104,144.47,144.46,1.38417895]
[1724406395771,0.04605412,144.48,144.46,1.38417895]
[1724406396073,0.04605412,144.48,144.47,1.38417895]
[1724406398269,0.04605412,144.48,144.47,1.38403915]
[1724406398974,3.50645412,144.48,144.47,1.38403915]
[1724406400570,3.50645412,144.48,144.46,0.05260779]
[1724406401574,3.4607,144.47,144.46,0.05260779]
[1724406401969,3.4607,144.47,144.46,1.43676932]
[1724406407583,3.4607,144.47,144.46,0.05260779]
[1724406408285,10.8707,144.47,144.46,0.05260779]
[1724406408475,3.4613,144.45,144.42,1.36380779]
[1724406408678,3.4613,144.45,144.43,1.38437114]
[1724406408878,3.4613,144.45,144.44,1.38437114]
[1724406410987,3.4613,144.45,144.43,0.04509252]
[1724406411186,3.4613,144.45,144.44,1.38423695]
[1724406412675,3.4613,144.45,144.44,1.38424603]
[1724406414496,3.4614,144.44,144.43,0.04509252]
[1724406414786,3.4614,144.44,144.43,1.42939629]
[1724406417783,10.8714,144.44,144.43,1.42939629]
[1724406418487,10.8714,144.44,144.43,0.04509252]
[1724406418686,10.8714,144.44,144.43,1.42957409]
[1724406423689,10.8714,144.44,144.43,1.42959986]
[1724406426697,3.4614,144.44,144.43,1.42959986]
[1724406427188,3.4614,144.44,144.43,0.04509252]
[1724406427594,3.4614,144.44,144.43,1.42947465]
[1724406429792,3.4612,144.45,144.43,1.42947465]
[1724406429994,3.4612,144.45,144.44,1.38438213]
[1724406430488,3.4612,144.45,144.43,0.04509252]
[1724406430792,3.4612,144.45,144.44,1.38426302]
[1724406431296,3.51249564,144.46,144.44,1.38426302]
[1724406431497,0.05149564,144.46,144.45,1.38426302]
[1724406432294,3.51239564,144.46,144.45,1.38426302]
[1724406432595,10.92239564,144.46,144.45,1.38426302]
[1724406434303,3.51239564,144.46,144.45,1.38426302]
[1724406435903,3.4612,144.45,144.43,0.04509252]
[1724406436100,3.4612,144.45,144.44,1.38423924]
[1724406440008,3.4612,144.45,144.43,0.04509252]
[1724406440201,3.4612,144.45,144.44,1.38423825]
[1724406443525,10.8722,144.41,144.39,1.3781]
[1724406444303,3.51038142,144.41,144.39,1.42875821]
[1724406445708,10.92038142,144.41,144.39,1.42875821]
[1724406448413,10.8723,144.4,144.39,0.05065821]
[1724406452123,10.8723,144.4,144.35,2.6219]
[1724406452124,3.4631,144.37,144.35,2.6219]
[1724406452326,7.41,144.37,144.31,3.43190125]
[1724406452631,7.41,144.35,144.29,7.41]
[1724406452828,7.41,144.36,144.3,7.41]
[1724406453031,7.41,144.36,144.29,3.48348016]
[1724406453228,0.0514654,144.34,144.27,2.6794]
[1724406453430,0.0514654,144.34,144.31,3.4643]
[1724406453633,0.0514654,144.34,144.3,3.45094044]
[1724406453828,0.0514654,144.34,144.31,1.38529498]
[1724406454024,0.0514654,144.34,144.32,1.38529498]
[1724406454228,0.0514654,144.34,144.33,1.38529498]
[1724406454552,0.0514654,144.34,144.33,4.14299498]
[1724406454726,0.0514654,144.34,144.33,2.7577]
[1724406454931,0.0514654,144.34,144.33,4.14290273]
[1724406457226,3.5152654,144.34,144.33,1.38520273]
[1724406457426,3.5152654,144.34,144.29,3.4649]
[1724406457630,10.9252654,144.34,144.3,1.38541768]
[1724406457935,3.5152654,144.34,144.31,1.38541768]
[1724406458234,3.5152654,144.34,144.32,1.38541768]
[1724406458429,3.5152654,144.34,144.29,10.8749]
[1724406458632,3.5152654,144.34,144.3,4.85003083]
[1724406458830,3.5152654,144.34,144.31,1.38533083]
[1724406459029,3.5152654,144.34,144.32,1.38533083]
[1724406459227,3.5152654,144.34,144.3,3.4647]
[1724406459228,0.0514654,144.34,144.3,3.4647]
[1724406459434,0.0514654,144.34,144.31,1.38531994]
[1724406459626,0.0514654,144.34,144.32,1.38531994]
[1724406459925,0.0514654,144.34,144.3,3.4647]
[1724406460127,0.0514654,144.34,144.31,1.38532171]
[1724406460327,0.0514654,144.34,144.3,3.4647]
[1724406460630,0.0514654,144.34,144.31,12.25973083]
[1724406460931,0.0514654,144.34,144.32,1.38533083]
[1724406461129,0.0514654,144.34,144.32,2.6595]
[1724406461328,0.0514654,144.34,144.33,1.38521017]
[1724406461735,3.4631,144.37,144.33,4.84921017]
[1724406461928,3.4631,144.37,144.33,3.464]
[1724406462938,0.04663874,144.36,144.34,0.04886982]
[1724406465945,7.41,144.35,144.34,0.04886982]
[1724406468138,3.51003874,144.36,144.34,0.04886982]
[1724406468742,0.04663874,144.36,144.34,0.04886982]
[1724406469543,3.50993874,144.36,144.34,0.04886982]
[1724406470541,10.91993874,144.36,144.34,0.04886982]
[1724406471844,7.41,144.35,144.34,0.04886982]
[1724406472143,7.41,144.33,144.28,3.975]
[1724406472441,2.00812,144.39,144.29,1.38535463]
[1724406472641,3.4633,144.36,144.31,3.4643]
[1724406472940,0.04734783,144.35,144.32,0.02058603]
[1724406473136,0.04734783,144.35,144.32,1.40580588]
[1724406473439,0.04734783,144.35,144.32,0.02058603]
[1724406474441,0.04734783,144.35,144.32,3.48478603]
[1724406476335,0.04734783,144.35,144.32,0.02058603]
[1724406477330,0.04734783,144.35,144.32,7.43058603]
[1724406477535,0.04734783,144.35,144.33,1.38512307]
[1724406477730,0.04734783,144.35,144.33,2.6969]
[1724406477935,0.04734783,144.35,144.33,6.1607]
[1724406478136,47.72318367,144.41,144.34,7.41]
[1724406478337,3.4625,144.4,144.35,3.4633]
[1724406478533,55.13318367,144.41,144.34,7.41]
[1724406478745,7.41,144.4,144.34,7.41]
[1724406479139,3.4626,144.39,144.36,0.04944579]
[1724406479348,0.04767037,144.38,144.36,0.04944579]
[1724406480641,0.04767037,144.38,144.37,3.4631]
[1724406480947,0.04767037,144.38,144.36,0.04944579]
[1724406481641,3.4621,144.41,144.37,7.41]
[1724406482040,7.41,144.43,144.37,7.41]
[1724406482243,3.462,144.42,144.37,10.8728]
[1724406482444,52.25452919,144.49,144.38,7.41]
[1724406482747,7.46145826,144.45,144.42,0.04403263]
[1724406482944,3.4617,144.43,144.42,0.04403263]
[1724406485446,3.4614,144.44,144.42,0.04403263]
[1724406489750,3.51255826,144.45,144.42,0.04403263]
[1724406490849,0.05145826,144.45,144.42,3.50583263]
[1724406492249,0.05145826,144.45,144.43,3.4614]
[1724406492856,0.05145826,144.45,144.42,10.91583263]
[1724406494353,0.05145826,144.45,144.43,3.4616]
[1724406494751,7.41,144.5,144.44,10.8712]
[1724406495148,7.41,144.5,144.44,4.8642]
[1724406495748,3.50981192,144.48,144.46,0.04688896]
[1724406497250,3.4607,144.47,144.46,0.04688896]
[1724406498852,10.8707,144.47,144.46,0.04688896]
[1724406502259,3.4607,144.47,144.46,0.04688896]
[1724406502463,10.8707,144.47,144.46,0.04688896]
[1724406506064,3.4607,144.47,144.46,0.04688896]
[1724406509060,10.8707,144.47,144.46,0.04688896]
[1724406514887,3.4607,144.47,144.46,0.04688896]
[1724406520487,10.91961192,144.48,144.46,0.04688896]
[1724406523786,3.50961192,144.48,144.46,0.04688896]
[1724406524084,0.04921192,144.48,144.46,0.04688896]
[1724406525284,3.50961192,144.48,144.46,0.04688896]
[1724406525884,0.04921192,144.48,144.46,0.04688896]
[1724406526682,0.04921192,144.48,144.46,3.50778896]
[1724406527079,0.04921192,144.48,144.46,0.04688896]
[1724406527278,0.04921192,144.48,144.46,3.50758896]
[1724406527888,0.04921192,144.48,144.46,10.91758896]
[1724406529392,0.04921192,144.48,144.46,3.50758896]
[1724406533692,0.04921192,144.48,144.46,0.04688896]
[1724406540303,3.50961192,144.48,144.46,0.04688896]
[1724406540501,7.45921192,144.48,144.46,0.04688896]
[1724406540804,10.8706,144.47,144.46,0.04688896]
[1724406551601,3.4606,144.47,144.46,0.04688896]
[1724406551800,10.8706,144.47,144.46,0.04688896]
[1724406552903,3.4606,144.47,144.46,0.04688896]
[1724406553315,3.50961192,144.48,144.46,0.04688896]
[1724406554807,3.50961192,144.48,144.47,1.38429015]
[1724406554808,0.04921192,144.48,144.47,1.38429015]
[1724406556100,3.4599,144.51,144.47,1.38429015]
[1724406556403,3.4599,144.51,144.48,1.38417385]
[1724406556599,3.4599,144.51,144.47,7.41]
[1724406556797,3.4599,144.51,144.48,1.38417362]
[1724406557002,3.4599,144.51,144.47,7.41]
[1724406557299,0.04672117,144.5,144.48,1.43232707]
[1724406557500,0.04672117,144.5,144.49,1.38406116]
[1724406559806,0.04672117,144.5,144.49,1.38403822]
[1724406561910,3.50662117,144.5,144.49,1.38403822]
[1724406563110,3.50662117,144.5,144.49,1.38404067]
[1724406566211,3.50662117,144.5,144.48,0.04826591]
[1724406566401,3.50662117,144.5,144.49,1.38403968]
[1724406566807,0.04672117,144.5,144.49,1.38403968]
[1724406567211,0.04672117,144.5,144.48,7.45826591]
[1724406567713,3.50662117,144.5,144.48,7.45826591]
[1724406568610,0.04672117,144.5,144.48,7.45826591]
[1724406568913,0.04672117,144.5,144.49,7.41]
[1724406570813,0.04672117,144.5,144.49,8.79403073]
[1724406573127,0.04672117,144.5,144.49,7.41]
[1724406573312,0.04672117,144.5,144.49,8.79402267]
[1724406574215,0.04672117,144.5,144.49,7.41]
[1724406575518,0.04672117,144.5,144.48,10.91866591]
[1724406576514,0.04672117,144.5,144.48,7.45826591]
[1724406577323,0.04672117,144.5,144.49,1.38402289]
[1724406580416,0.04672117,144.5,144.49,12.25422289]
[1724406584624,0.04672117,144.5,144.49,4.84422289]
[1724406587223,0.04672117,144.5,144.49,1.38402289]
[1724406589027,3.50662117,144.5,144.49,1.38402289]
[1724406589928,0.04672117,144.5,144.49,1.38402289]
[1724406592075,0.04672117,144.5,144.48,0.04826591]
[1724406592226,0.04672117,144.5,144.49,1.38384874]
[1724406595631,0.04672117,144.5,144.49,1.38384136]
[1724406595827,0.04672117,144.5,144.49,1.38384874]
[1724406597622,0.04672117,144.5,144.49,1.38384748]
[1724406598729,0.04672117,144.5,144.49,1.38384847]
[1724406601053,0.04672117,144.5,144.48,10.91866591]
[1724406601531,0.04672117,144.5,144.49,1.38384108]
[1724406604831,0.04672117,144.5,144.49,8.79384108]
[1724406607533,0.04672117,144.5,144.49,8.7938959]
[1724406610132,0.04672117,144.5,144.49,1.3838959]
[1724406610931,3.50662117,144.5,144.49,1.3838959]
[1724406611133,0.04672117,144.5,144.49,1.3838959]
[1724406611633,0.04672117,144.5,144.48,0.04826591]
[1724406613339,3.50672117,144.5,144.48,0.04826591]
[1724406616837,3.4602,144.49,144.48,0.04826591]
[1724406617143,0.04672117,144.5,144.48,0.04826591]
[1724406617937,7.45672117,144.5,144.48,0.04826591]
[1724406619440,3.4602,144.49,144.48,0.04826591]
[1724406621540,3.4602,144.49,144.48,1.43248118]
[1724406622732,0.04672117,144.5,144.48,8.84248118]
[1724406623042,0.04672117,144.5,144.49,1.38406577]
[1724406624246,10.91662117,144.5,144.49,1.38406577]
[1724406624444,7.45672117,144.5,144.48,0.04826591]
[1724406625044,10.91662117,144.5,144.49,1.38415402]
[1724406626139,10.91662117,144.5,144.48,0.04826591]
[1724406626140,3.4602,144.49,144.48,0.04826591]
[1724406626336,3.4602,144.49,144.48,1.43247963]
[1724406626951,3.4602,144.49,144.48,0.04826591]
[1724406627246,3.4602,144.49,144.48,1.43247963]
[1724406627447,3.4602,144.49,144.48,2.81669335]
[1724406627644,10.8702,144.49,144.48,2.81669335]
[1724406627847,10.8702,144.49,144.48,1.43247963]
[1724406628343,10.8702,144.49,144.48,0.04826591]
[1724406633862,2.00011,144.49,144.37,1.2823]
[1724406634045,29.64,144.48,144.38,1.38472348]
[1724406634355,7.41,144.42,144.39,1.38472348]
[1724406634552,7.41,144.42,144.4,1.38472348]
[1724406634756,7.41,144.42,144.41,1.38472348]
[1724406634948,7.41,144.42,144.4,1.38472348]
[1724406635251,10.872,144.42,144.39,0.0504604]
[1724406635449,10.872,144.42,144.4,1.38477229]
[1724406635641,10.872,144.42,144.39,0.0504604]
[1724406635845,10.872,144.42,144.4,1.38477968]
[1724406636047,10.872,144.42,144.39,0.0504604]
[1724406636250,10.8721,144.41,144.4,1.38477968]
[1724406636461,10.8721,144.41,144.39,0.0504604]
[1724406638747,10.8723,144.4,144.39,0.0504604]
[1724406640050,7.41,144.4,144.35,3.46156516]
[1724406640249,10.8729,144.38,144.33,3.4638]
[1724406640450,10.8729,144.38,144.34,1.38516824]
[1724406640645,10.8729,144.38,144.35,1.38516824]
[1724406640848,10.8729,144.38,144.34,6.94015287]
[1724406641049,10.8729,144.38,144.35,1.38511761]
[1724406641352,10.8729,144.38,144.35,0.05321098]
[1724406641353,0.04463953,144.37,144.35,0.05321098]
[1724406642047,3.50763953,144.37,144.35,0.05321098]
[1724406648250,0.04463953,144.37,144.35,0.05321098]
[1724406648552,0.04463953,144.37,144.36,7.41]
[1724406650056,0.04463953,144.37,144.35,0.05321098]
[1724406651660,3.50773953,144.37,144.35,0.05321098]
[1724406652655,3.4633,144.36,144.35,0.05321098]
[1724406654455,10.8733,144.36,144.35,0.05321098]
[1724406656058,10.8733,144.36,144.31,6.08049265]
[1724406656059,3.4641,144.33,144.31,6.08049265]
[1724406656255,7.41,144.33,144.31,2.6735]
[1724406656450,7.41,144.33,144.27,7.41]
[1724406656651,7.41,144.33,144.28,1.38538855]
[1724406656854,3.4642,144.32,144.28,3.465]
[1724406657055,0.04850613,144.31,144.29,0.0480082]
[1724406661363,0.04850613,144.31,144.29,3.5129082]
[1724406661565,7.45850613,144.31,144.29,0.0480082]
[1724406661866,0.04850613,144.31,144.29,0.0480082]
[1724406662066,3.51310613,144.31,144.29,0.0480082]
[1724406663958,0.04850613,144.31,144.29,0.0480082]
[1724406664869,3.51300613,144.31,144.29,0.0480082]
[1724406665561,10.92300613,144.31,144.29,0.0480082]
[1724406666365,3.51300613,144.31,144.29,0.0480082]
[1724406666753,0.04850613,144.31,144.29,0.0480082]
[1724406667869,0.04850613,144.31,144.29,3.5129082]
[1724406668555,7.45850613,144.31,144.29,0.0480082]
[1724406669196,0.04850613,144.31,144.29,0.0480082]
[1724406669470,7.41,144.36,144.3,7.41]
[1724406669865,3.4638,144.34,144.3,10.8745]
[1724406670363,7.41,144.33,144.29,3.4649]
[1724406670569,7.45717688,144.33,144.31,0.04908903]
[1724406672168,10.92117688,144.33,144.31,0.04908903]
[1724406674569,0.04717688,144.33,144.31,0.04908903]
[1724406675165,0.04717688,144.33,144.32,3.4642]
[1724406675371,7.41,144.37,144.31,7.41]
[1724406675565,15.8858,144.27,144.11,6.9383]
[1724406675870,7.41,144.25,144.21,1.4087]
[1724406676068,7.41,144.25,144.2,3.42261079]
[1724406676259,7.41,144.23,144.2,3.42261079]
[1724406676578,1.0,144.36,144.21,0.05001862]
[1724406676580,0.04633614,144.24,144.21,0.05001862]
[1724406676866,7.41,144.23,144.21,0.04489983]
[1724406677066,0.04500488,144.24,144.21,0.04489983]
[1724406677067,7.45500488,144.24,144.21,0.04489983]
[1724406677269,7.41,144.22,144.21,0.04489983]
[1724406677668,10.8766,144.22,144.21,0.04489983]
[1724406679292,7.41,144.22,144.21,0.04489983]
[1724406679468,0.04500488,144.24,144.21,0.04489983]
[1724406681566,0.04500488,144.24,144.23,3.4664]
[1724406681876,0.04500488,144.24,144.21,0.04489983]
[1724406682374,0.04500488,144.24,144.22,3.4664]
[1724406682590,0.04500488,144.24,144.21,0.04489983]
[1724406683376,0.04500488,144.24,144.22,3.4666]
[1724406683576,0.04500488,144.24,144.23,1.3691]
[1724406685964,0.04500488,144.24,144.23,4.8355]
[1724406686165,18.63,144.3,144.23,1.3691]
[1724406686778,18.63,144.3,144.25,3.4657]
[1724406687276,0.04738497,144.29,144.26,0.04669877]
[1724406689387,0.04738497,144.29,144.26,3.51229877]
[1724406689581,0.04738497,144.29,144.26,0.04669877]
[1724406690578,0.04738497,144.29,144.28,3.4652]
[1724406690881,18.63,144.33,144.27,1.363]
[1724406691676,0.05014952,144.31,144.29,0.04911495]
[1724406691983,0.05014952,144.31,144.29,3.51401495]
[1724406695779,0.05014952,144.31,144.29,0.04911495]
[1724406696380,18.68014952,144.31,144.29,0.04911495]
[1724406702386,7.50014952,144.31,144.29,0.04911495]
[1724406702889,0.05014952,144.31,144.29,0.04911495]
[1724406703994,0.05014952,144.31,144.29,3.51401495]
[1724406704595,7.50014952,144.31,144.29,0.04911495]
[1724406704800,7.45,144.3,144.29,0.04911495]
[1724406706202,0.05014952,144.31,144.29,0.04911495]
[1724406706401,7.45,144.3,144.29,0.04911495]
[1724406706699,18.67014952,144.31,144.29,0.04911495]
[1724406709607,0.05014952,144.31,144.29,0.04911495]
[1724406712006,18.67014952,144.31,144.29,0.04911495]
[1724406716015,0.05014952,144.31,144.29,0.04911495]
[1724406716213,0.05014952,144.31,144.29,3.51401495]
[1724406717207,0.05014952,144.31,144.29,0.04911495]
[1724406720816,0.05014952,144.31,144.3,3.4647]
[1724406723803,92.22660967,144.37,144.31,3.4643]
[1724406725015,0.04464662,144.35,144.33,0.04371957]
[1724406732621,7.49464662,144.35,144.33,0.04371957]
[1724406733923,0.04464662,144.35,144.33,0.04371957]
[1724406734410,0.04464662,144.35,144.34,3.4638]
[1724406738420,7.45,144.4,144.37,3.463]
[1724406738620,7.45,144.4,144.33,7.49371957]
[1724406738621,7.45,144.41,144.34,7.45]
[1724406738821,7.45,144.41,144.34,8.8292]
[1724406739018,7.45,144.39,144.34,1.3792]
[1724406739620,0.04429253,144.38,144.35,0.05158694]
[1724406740420,0.04429253,144.38,144.36,3.4632]
[1724406745735,0.04429253,144.38,144.35,3.51498694]
[1724406746431,7.49429253,144.38,144.35,3.51498694]
[1724406752845,7.49429253,144.38,144.36,3.4633]
[1724406752846,0.04429253,144.38,144.36,3.4633]
[1724406754938,0.04429253,144.38,144.37,3.463]
[1724406758636,0.04429253,144.38,144.36,3.4631]
[1724406759136,0.04429253,144.38,144.35,0.05158694]
[1724406760439,0.04429253,144.38,144.37,3.463]
[1724406762239,0.04429253,144.38,144.36,3.4632]
[1724406766038,0.04429253,144.38,144.35,0.05158694]
[1724406766039,0.04429253,144.38,144.37,3.463]
[1724406767241,0.04429253,144.38,144.36,3.4632]
[1724406768446,0.04429253,144.38,144.37,3.463]
[1724406769540,0.04429253,144.38,144.36,3.4632]
[1724406772344,0.04429253,144.38,144.37,3.463]
[1724406786258,0.04429253,144.38,144.37,10.913]
[1724406787061,0.1421,144.48,144.37,7.45]
[1724406787362,7.45,144.44,144.39,7.45]
[1724406787560,7.45,144.44,144.4,3.4622]
[1724406787963,7.45,144.44,144.41,0.04886572]
[1724406788160,0.05167165,144.43,144.41,0.04886572]
[1724406788858,7.50167165,144.43,144.41,0.04886572]
[1724406797767,0.05167165,144.43,144.41,0.04886572]
[1724406807776,0.05167165,144.43,144.41,3.51086572]
[1724406809385,0.05167165,144.43,144.41,0.04886572]
[1724406812895,0.05167165,144.43,144.41,3.51096572]
[1724406813492,0.05167165,144.43,144.41,0.04886572]
[1724406815284,0.05167165,144.43,144.42,3.4618]
[1724406818284,0.05167165,144.43,144.41,3.51086572]
[1724406825988,0.05167165,144.43,144.41,0.04886572]
[1724406827190,0.05167165,144.43,144.41,3.51096572]
[1724406829696,0.05167165,144.43,144.42,3.4618]
[1724406835605,0.05167165,144.43,144.41,3.51086572]
[1724406837302,0.05167165,144.43,144.42,3.4618]
[1724406837994,0.05167165,144.43,144.41,3.51086572]
[1724406839602,0.05167165,144.43,144.41,0.04886572]
[1724406839799,7.45,144.42,144.41,0.04886572]
[1724406840303,10.9118,144.42,144.41,0.04886572]
[1724406840493,7.45,144.42,144.41,0.04886572]
[1724406841095,10.96337165,144.43,144.41,0.04886572]
[1724406841698,0.05167165,144.43,144.41,0.04886572]
[1724406845803,0.05167165,144.43,144.41,3.51096572]
[1724406847305,0.05167165,144.43,144.41,10.96096572]
[1724406852113,0.05167165,144.43,144.42,3.4618]
[1724406863716,1.27269882,144.45,144.44,3.4614]
[1724406863922,7.45,144.51,144.44,10.9114]
[1724406864116,1.27250071,144.48,144.44,10.9114]
[1724406864821,0.04992428,144.47,144.45,0.0515805]
[1724406865418,0.04992428,144.47,144.45,3.5126805]
[1724406866420,1.32234557,144.47,144.45,3.5126805]
[1724406866629,0.04992428,144.47,144.45,3.5126805]
[1724406867622,1.32234852,144.47,144.45,3.5126805]
[1724406867820,0.04992428,144.47,144.45,3.5126805]
[1724406872733,1.32234228,144.47,144.45,3.5126805]
[1724406873333,3.4609,144.46,144.45,0.0515805]
[1724406873536,4.733318,144.46,144.45,0.0515805]
[1724406873838,1.272418,144.46,144.45,0.0515805]
[1724406874838,1.27244807,144.46,144.45,0.0515805]
[1724406876129,0.04992428,144.47,144.45,0.0515805]
[1724406876333,1.32236386,144.47,144.45,0.0515805]
[1724406878142,1.32236386,144.47,144.45,7.5015805]
[1724406878339,0.04992428,144.47,144.45,7.5015805]
[1724406879039,1.32236551,144.47,144.45,7.5015805]
[1724406879234,1.32236551,144.47,144.45,10.9626805]
[1724406879439,0.04992428,144.47,144.45,10.9626805]
[1724406883244,1.32236197,144.47,144.45,10.9626805]
[1724406883549,0.04992428,144.47,144.45,10.9626805]
[1724406895859,1.32235496,144.47,144.45,10.9626805]
[1724406896061,0.04992428,144.47,144.45,0.0515805]
[1724406896257,1.32236129,144.47,144.45,0.0515805]
[1724406897257,1.32236129,144.47,144.45,3.5126805]
[1724406900161,0.04992428,144.47,144.45,3.5126805]
[1724406900361,1.32236248,144.47,144.45,0.0515805]
[1724406901763,4.78306248,144.47,144.45,0.0515805]
[1724406901955,1.2724382,144.46,144.45,0.0515805]
[1724406902665,3.51062428,144.47,144.45,0.0515805]
[1724406903662,0.04992428,144.47,144.45,0.0515805]
[1724406903870,1.32237045,144.47,144.45,0.0515805]
[1724406904170,4.78317045,144.47,144.45,0.0515805]
[1724406904364,1.27244617,144.46,144.45,0.0515805]
[1724406907567,3.51072428,144.47,144.45,0.0515805]
[1724406907768,1.27254855,144.46,144.45,0.0515805]
[1724406916179,3.51072428,144.47,144.45,0.0515805]
[1724406916377,1.27255558,144.46,144.45,0.0515805]
[1724406917377,3.51072428,144.47,144.45,0.0515805]
[1724406917678,1.2725559,144.46,144.45,0.0515805]
[1724406920486,3.51072428,144.47,144.45,0.0515805]
[1724406920685,1.27256282,144.46,144.45,0.0515805]
[1724406923281,1.3224871,144.47,144.45,0.0515805]
[1724406923486,1.27256282,144.46,144.45,0.0515805]
[1724406924689,3.51052428,144.47,144.45,0.0515805]
[1724406924886,1.27256218,144.46,144.45,0.0515805]
[1724406926586,4.73346218,144.46,144.45,0.0515805]
[1724406926791,12.18346218,144.46,144.45,0.0515805]
[1724406927499,12.18346218,144.46,144.37,1.3544]
[1724406927500,8.72256218,144.46,144.37,1.3544]
[1724406927695,7.45,144.43,144.38,7.45]
[1724406928016,1.27256218,144.42,144.38,7.45]
[1724406928598,0.04483433,144.41,144.39,3.5083207]
[1724406937804,0.04483433,144.41,144.4,3.4623]
[1724406939599,0.04483433,144.41,144.39,3.5083207]
[1724406946208,0.04483433,144.41,144.4,3.4623]
[1724406949601,1.27280618,144.43,144.4,3.4623]
[1724406949602,1.27280618,144.43,144.41,3.462]
[1724406949799,3.4612,144.45,144.41,3.462]
[1724406950312,1.27275154,144.44,144.42,7.45]
[1724406950705,1.31644712,144.44,144.42,7.49758215]
[1724406951209,1.27275154,144.43,144.42,7.49758215]
[1724406951608,0.04369558,144.44,144.42,7.49758215]
[1724406953714,0.04369558,144.44,144.42,0.04758215]
[1724406954106,1.31644712,144.44,144.42,0.04758215]
[1724406954298,1.27283861,144.43,144.42,0.04758215]
[1724406954520,1.31653419,144.44,144.42,0.04758215]
[1724406954807,1.27283861,144.43,144.42,0.04758215]
[1724406955498,1.31653419,144.44,144.42,0.04758215]
[1724406956611,4.77793419,144.44,144.42,0.04758215]
[1724406956808,1.27283861,144.43,144.42,0.04758215]
[1724406958501,3.50509558,144.44,144.42,0.04758215]
[1724406958705,1.27274403,144.43,144.42,0.04758215]
[1724406960411,1.27274405,144.43,144.42,0.04758215]
[1724406961615,3.50509558,144.44,144.42,0.04758215]
[1724406961815,1.27275083,144.43,144.42,0.04758215]
[1724406964214,12.18435083,144.43,144.42,0.04758215]
[1724406966014,12.18441286,144.43,144.42,0.04758215]
[1724406970324,12.18446059,144.43,144.42,0.04758215]
[1724406974220,4.73446059,144.43,144.42,0.04758215]
[1724406974728,3.4616,144.43,144.42,0.04758215]
[1724406974925,4.73441227,144.43,144.42,0.04758215]
[1724406978033,12.18441227,144.43,144.42,0.04758215]
[1724406980429,12.18440583,144.43,144.42,0.04758215]
[1724406983726,12.18441286,144.43,144.42,0.04758215]
[1724406988334,12.18440594,144.43,144.42,0.04758215]
[1724406993836,12.18440644,144.43,144.42,0.04758215]
[1724406997170,12.18440661,144.43,144.42,0.04758215]